bitfinex/quotes_SOLUSD_20260108
["timestamp","ask_amount","ask_price","bid_price","bid_amount"]
[1767892525499,5.78752429,137.84,137.82,13.24]
[1767892526096,13.04237098,137.84,137.82,13.24]
[1767892526398,5.78752429,137.83,137.79,13.91218838]
[1767892526601,9.41440696,137.83,137.79,13.91218838]
[1767892527599,9.41440696,137.83,137.79,0.67218838]
[1767892527777,9.41440696,137.83,137.77,6.96443384]
[1767892527778,2.26575659,137.82,137.77,9.51123121]
[1767892527978,2.26575659,137.82,137.77,22.75123121]
[1767892528179,0.4864085,137.81,137.77,22.07904283]
[1767892528383,2.15893213,137.82,137.77,30.00966476]
[1767892528787,9.41494527,137.82,137.77,23.32955406]
[1767892529376,9.51394527,137.82,137.77,23.32955406]
[1767892529697,9.51394527,137.82,137.76,0.67218838]
[1767892529698,2.26188368,137.8,137.76,0.67218838]
[1767892530696,9.51913567,137.8,137.76,0.67218838]
[1767892530997,7.36020354,137.8,137.76,0.67218838]
[1767892531704,7.35991553,137.8,137.76,0.67218838]
[1767892532295,9.51884766,137.8,137.75,22.65813586]
[1767892532513,9.51884766,137.8,137.75,9.41813586]
[1767892532708,0.10682446,137.78,137.74,2.83925284]
[1767892532912,0.10682446,137.78,137.74,0.68032071]
[1767892533299,0.1106203,137.76,137.73,0.1]
[1767892534232,7.25667342,137.81,137.75,2.83925284]
[1767892534391,7.25667342,137.81,137.76,2.15893213]
[1767892534392,0.10295155,137.8,137.76,2.15893213]
[1767892534596,45.95901708,137.82,137.78,2.83925284]
[1767892534897,48.11794921,137.82,137.77,2.15893213]
[1767892535098,48.11794921,137.82,137.76,23.33814121]
[1767892535298,48.11794921,137.82,137.77,2.15893213]
[1767892535506,0.099,137.81,137.76,7.93920908]
[1767892535696,0.099,137.81,137.77,2.15893213]
[1767892536608,5.88359442,137.81,137.76,6.46491513]
[1767892536822,0.10295155,137.79,137.76,5.78459442]
[1767892537031,0.10295155,137.79,137.74,5.78459442]
[1767892537032,0.49024268,137.78,137.74,5.78459442]
[1767892537210,0.49024268,137.78,137.73,6.56491513]
[1767892537419,0.49024268,137.78,137.75,5.78459442]
[1767892537602,0.49024268,137.78,137.74,5.78459442]
[1767892538017,0.49024268,137.78,137.73,0.78032071]
[1767892538421,0.10682446,137.77,137.73,6.56491513]
[1767892538718,7.37014843,137.75,137.73,0.1]
[1767892538923,7.35852813,137.75,137.73,0.1]
[1767892539121,7.25952813,137.75,137.73,0.1]
[1767892539508,6.1827406,137.74,137.69,0.78032071]
[1767892539711,5.88359442,137.73,137.69,0.1]
[1767892539909,0.099,137.73,137.69,13.82726852]
[1767892540222,0.099,137.73,137.7,5.78459442]
[1767892540418,13.44226873,137.75,137.7,5.78459442]
[1767892540924,7.65767431,137.75,137.7,7.94226703]
[1767892541123,7.65767431,137.75,137.71,5.78459442]
[1767892541330,7.65767431,137.75,137.7,7.94226703]
[1767892541331,13.04412255,137.75,137.7,6.46491513]
[1767892541629,7.35852813,137.75,137.7,6.46491513]
[1767892541830,7.35852813,137.75,137.7,0.68032071]
[1767892542005,13.14312255,137.75,137.7,6.46491513]
[1767892542205,0.39515471,137.74,137.7,5.78459442]
[1767892542405,6.17974913,137.74,137.69,13.82742183]
[1767892542613,6.17974913,137.74,137.69,0.1]
[1767892542614,0.10196155,137.73,137.69,0.1]
[1767892542817,13.14754396,137.73,137.69,0.1]
[1767892543018,13.14387118,137.74,137.69,6.56491513]
[1767892544025,31.19500912,137.74,137.69,0.1]
[1767892544225,5.88655597,137.72,137.69,0.1]
[1767892544414,0.39814618,137.74,137.69,6.56491513]
[1767892544610,0.39814618,137.74,137.69,0.78032071]
[1767892544816,7.65851443,137.74,137.69,6.56491513]
[1767892545216,7.65851443,137.74,137.69,13.82743521]
[1767892545621,13.04429786,137.75,137.7,6.46491513]
[1767892545818,24.02849145,137.78,137.73,6.46491513]
[1767892546019,7.25712111,137.8,137.76,6.46491513]
[1767892546235,7.25712111,137.8,137.77,6.46491513]
[1767892546417,7.25712111,137.8,137.77,5.78459442]
[1767892546919,7.35536746,137.81,137.77,5.78459442]
[1767892548328,25.49628611,137.81,137.76,6.46491513]
[1767892549022,18.23991865,137.81,137.76,6.46491513]
[1767892549429,24.02451307,137.81,137.76,6.46491513]
[1767892549608,18.23991865,137.81,137.76,6.46491513]
[1767892549814,0.099,137.81,137.76,6.46491513]
[1767892550017,13.13943537,137.82,137.77,0.68032071]
[1767892550323,13.13943537,137.82,137.77,6.46491513]
[1767892550526,16.75403924,137.82,137.77,10.079519]
[1767892550724,7.25584095,137.82,137.78,10.079519]
[1767892551044,31.399035,137.83,137.79,9.39919829]
[1767892551045,7.25544807,137.83,137.79,9.39919829]
[1767892551414,16.65464636,137.83,137.78,10.079519]
[1767892553232,9.39919829,137.82,137.77,10.079519]
[1767892553434,9.49819829,137.82,137.77,10.079519]
[1767892554328,0.39515471,137.81,137.77,0.68032071]
[1767892554636,9.50115984,137.8,137.75,10.079519]
[1767892555147,7.25742071,137.79,137.75,10.079519]
[1767892555321,7.25742071,137.79,137.75,0.68032071]
[1767892555644,7.64964349,137.79,137.75,10.079519]
[1767892555936,7.64964349,137.79,137.75,0.68032071]
[1767892556144,7.64964349,137.79,137.75,10.079519]
[1767892557627,35.19239356,137.79,137.74,9.39919829]
[1767892557817,9.50406245,137.78,137.73,10.079519]
[1767892558024,38.205,137.77,137.73,10.079519]
[1767892558328,38.205,137.77,137.74,0.68032071]
[1767892558937,45.46385251,137.77,137.74,0.68032071]
[1767892559650,38.205,137.77,137.74,10.079519]
[1767892560516,45.46382258,137.77,137.74,0.68032071]
[1767892560935,38.205,137.76,137.72,0.68032071]
[1767892561246,47.99642107,137.76,137.7,13.94032071]
[1767892561553,38.30986416,137.75,137.7,10.079519]
[1767892561755,38.30986416,137.75,137.7,17.34135054]
[1767892561925,38.30986416,137.75,137.71,16.66040807]
[1767892562127,38.30986416,137.75,137.72,10.079519]
[1767892562128,38.205,137.75,137.72,10.079519]
[1767892562321,38.205,137.75,137.73,9.39919829]
[1767892562522,38.205,137.75,137.72,0.68032071]
[1767892562723,38.205,137.75,137.72,10.079519]
[1767892563130,7.25812408,137.78,137.74,10.09364381]
[1767892563323,7.25812408,137.78,137.72,7.26080105]
[1767892563324,7.96292399,137.78,137.72,7.95524657]
[1767892563536,7.96292399,137.78,137.73,0.69444552]
[1767892563737,7.96292399,137.78,137.74,9.39919829]
[1767892564220,0.70479991,137.77,137.73,0.69444552]
[1767892564425,0.70479991,137.77,137.74,9.39919829]
[1767892564723,44.71737726,137.79,137.75,9.39919829]
[1767892564932,37.45979991,137.79,137.76,9.39919829]
[1767892565116,0.68482286,137.77,137.72,7.26074774]
[1767892565322,0.68482286,137.77,137.74,9.39919829]
[1767892565543,26.08629123,137.79,137.75,9.39919829]
[1767892565746,0.68482286,137.78,137.75,9.39919829]
[1767892565935,7.94185287,137.8,137.76,9.39919829]
[1767892566137,7.94081233,137.82,137.79,9.39919829]
[1767892566346,7.94077777,137.82,137.79,9.39919829]
[1767892566533,0.68482286,137.82,137.79,9.39919829]
[1767892566731,7.25533961,137.83,137.79,9.39919829]
[1767892567029,0.68482286,137.82,137.79,9.39919829]
[1767892568137,7.25533961,137.83,137.8,9.39919829]
[1767892568641,7.93979017,137.84,137.81,9.39919829]
[1767892568840,7.25496731,137.84,137.81,9.39919829]
[1767892569635,7.25445161,137.85,137.81,10.060234]
[1767892570643,26.07492916,137.85,137.81,10.060234]
[1767892571547,7.25390526,137.86,137.82,10.060234]
[1767892571854,7.93821219,137.87,137.83,10.060234]
[1767892572026,17.33741048,137.87,137.83,10.060234]
[1767892572232,17.33741048,137.87,137.83,0.66103571]
[1767892572427,35.47043434,137.87,137.83,0.66103571]
[1767892572730,35.47043434,137.87,137.83,0.54103574]
[1767892573136,0.68482286,137.86,137.82,9.39919829]
[1767892573342,0.68482286,137.85,137.81,9.39919829]
[1767892573546,9.39919829,137.86,137.81,9.39919829]
[1767892573948,10.08402115,137.86,137.81,9.39919829]
[1767892574135,10.08402115,137.86,137.82,9.39919829]
[1767892574535,25.38641319,137.87,137.82,9.39919829]
[1767892574536,35.47043434,137.87,137.82,9.39919829]
[1767892574731,35.47043434,137.87,137.82,10.060234]
[1767892575134,0.68482286,137.86,137.82,9.39919829]
[1767892576241,10.08402115,137.86,137.81,10.060234]
[1767892576447,10.08402115,137.86,137.82,0.66103571]
[1767892576654,7.25426187,137.85,137.82,0.66103571]
[1767892577948,17.33828302,137.85,137.81,9.39919829]
[1767892578151,10.08402115,137.82,137.77,10.060234]
[1767892578331,46.83902115,137.84,137.79,10.060234]
[1767892578732,7.25531451,137.83,137.79,10.060234]
[1767892578933,16.6545128,137.83,137.79,10.060234]
[1767892579146,17.33933566,137.83,137.79,10.060234]
[1767892579866,35.47762195,137.83,137.79,10.060234]
[1767892580052,37.43982286,137.82,137.78,9.39919829]
[1767892580234,10.08402115,137.81,137.76,9.39919829]
[1767892580433,10.08402115,137.8,137.76,9.39919829]
[1767892580733,7.25742071,137.79,137.75,10.060234]
[1767892582146,17.34144186,137.79,137.74,10.060234]
[1767892583252,17.34144186,137.79,137.74,17.32018408]
[1767892583956,7.94224357,137.79,137.74,17.32018408]
[1767892584159,0.68482286,137.81,137.76,0.66103571]
[1767892584343,36.755,137.82,137.78,0.66103571]
[1767892584545,10.08402115,137.81,137.77,9.39919829]
[1767892584973,10.08402115,137.81,137.76,0.66103571]
[1767892585276,10.08402115,137.81,137.76,10.060234]
[1767892585773,7.94155622,137.81,137.78,9.39919829]
[1767892586461,7.94155622,137.81,137.77,0.66103571]
[1767892586675,7.94155622,137.81,137.77,10.060234]
[1767892587042,36.755,137.82,137.79,0.66103571]
[1767892587243,36.755,137.82,137.79,10.060234]
[1767892587443,10.08402115,137.84,137.79,10.060234]
[1767892587864,7.25552127,137.83,137.79,10.060234]
[1767892588666,17.33954242,137.83,137.79,0.66103571]
[1767892588862,17.33954242,137.83,137.78,9.39919829]
[1767892589161,0.68482286,137.81,137.77,0.66103571]
[1767892589368,0.68482286,137.81,137.77,10.060234]
[1767892590044,7.25689404,137.8,137.77,0.66103571]
[1767892590468,7.94139532,137.81,137.77,10.060234]
[1767892592365,7.25657246,137.81,137.76,7.2589351]
[1767892592663,37.44549171,137.8,137.76,10.09742022]
[1767892593452,37.44549171,137.8,137.79,10.09742022]
[1767892593453,35.82314615,137.8,137.79,10.09742022]
[1767892593639,0.69049171,137.83,137.77,20.49836443]
[1767892593839,0.69049171,137.83,137.8,9.39919829]
[1767892594048,0.69049171,137.83,137.81,9.39919829]
[1767892594772,0.69049171,137.83,137.79,7.25704971]
[1767892594951,0.69049171,137.83,137.8,9.39919829]
[1767892595145,7.25540002,137.83,137.8,9.39919829]
[1767892595345,43.76862115,137.84,137.8,9.39919829]
[1767892595557,43.76862115,137.84,137.81,9.39919829]
[1767892596666,35.82314615,137.84,137.82,9.39919829]
[1767892596855,35.82314615,137.84,137.79,13.24]
[1767892597047,35.82314615,137.84,137.82,9.39919829]
[1767892597471,43.07801431,137.84,137.81,9.39919829]
[1767892597972,0.69049171,137.82,137.77,7.25832468]
[1767892598151,0.69049171,137.82,137.78,9.39919829]
[1767892598663,7.94725635,137.81,137.77,9.39919829]
[1767892598865,0.69049171,137.8,137.77,9.39919829]
[1767892600342,0.69049171,137.8,137.76,13.24]
[1767892600545,0.69049171,137.8,137.76,22.63919829]
[1767892600766,0.69049171,137.8,137.76,29.89786077]
[1767892600968,0.69049171,137.8,137.77,9.39919829]
[1767892601271,7.94718656,137.81,137.78,9.39919829]
[1767892601469,7.94718656,137.81,137.76,20.49866248]
[1767892601653,7.94718656,137.81,137.77,9.39919829]
[1767892602565,7.94718656,137.81,137.77,3.37426618]
[1767892602773,36.51363786,137.8,137.75,7.25919415]
[1767892602985,36.51363786,137.8,137.76,3.37426618]
[1767892604092,36.51363786,137.8,137.74,3.37426618]
[1767892604093,0.69049171,137.78,137.74,3.37426618]
[1767892604259,4.06475789,137.78,137.71,18.43796228]
[1767892604586,4.06475789,137.78,137.73,3.37426618]
[1767892604883,4.06475789,137.78,137.73,10.63455217]
[1767892605094,0.69049171,137.78,137.74,7.25976011]
[1767892605251,10.63168689,137.79,137.74,7.25976011]
[1767892605455,0.69049171,137.79,137.75,10.63377325]
[1767892606208,0.69049171,137.79,137.76,3.37426618]
[1767892607608,35.82314615,137.8,137.78,3.37426618]
[1767892607909,0.69049171,137.81,137.78,3.37426618]
[1767892608595,7.9468973,137.81,137.78,3.37426618]
[1767892608914,39.19741233,137.83,137.74,13.52432314]
[1767892608915,35.82314615,137.83,137.74,13.52432314]
[1767892609085,0.69049171,137.88,137.82,3.37426618]
[1767892609282,0.69049171,137.88,137.81,3.77475927]
[1767892609283,0.69049171,137.88,137.86,3.37426618]
[1767892609708,0.69049171,137.9,137.87,3.37426618]
[1767892609932,0.69049171,137.92,137.89,3.37426618]
[1767892610221,0.69049171,137.94,137.85,0.28432314]
[1767892610507,0.69049171,137.92,137.89,9.38354304]
[1767892611194,0.69049171,137.92,137.87,13.24]
[1767892611398,0.69049171,137.92,137.88,9.38354304]
[1767892611692,0.69049171,137.92,137.89,9.38354304]
[1767892612484,0.69049171,137.92,137.89,5.77422857]
[1767892612700,0.69049171,137.92,137.9,5.04922857]
[1767892613101,7.94017258,137.94,137.9,5.04922857]
[1767892613902,0.69049171,137.93,137.89,0.69822193]
[1767892614082,0.69049171,137.93,137.9,5.77422857]
[1767892614817,0.69049171,137.93,137.89,0.69822193]
[1767892615016,0.69049171,137.93,137.89,6.4724505]
[1767892616393,111.04076185,137.93,137.89,6.4724505]
[1767892617426,111.04076185,137.93,137.9,5.77422857]
[1767892617708,7.44909059,137.95,137.92,6.4724505]
[1767892617918,0.2,137.95,137.93,6.4724505]
[1767892619310,0.2,137.95,137.93,0.69822193]
[1767892619521,0.2,137.95,137.93,0.63822193]
[1767892619818,7.44921351,137.95,137.92,5.77422857]
[1767892620020,0.69049171,137.94,137.9,19.01422857]
[1767892620187,0.69049171,137.93,137.87,7.25320911]
[1767892620391,6.46472028,137.93,137.88,19.01422857]
[1767892621114,0.69049171,137.93,137.88,19.01422857]
[1767892621319,25.57172166,137.95,137.88,19.01422857]
[1767892621320,5.77422857,137.94,137.89,5.77422857]
[1767892621615,7.25005437,137.93,137.89,6.4724505]
[1767892622122,7.9401397,137.94,137.9,5.77422857]
[1767892622617,7.9401397,137.94,137.9,6.43077978]
[1767892622800,0.69049171,137.94,137.91,5.77422857]
[1767892622997,7.44920273,137.95,137.91,6.43077978]
[1767892623201,0.2,137.95,137.92,6.43077978]
[1767892623400,7.44907386,137.95,137.92,6.43077978]
[1767892624007,7.44907386,137.95,137.92,0.65655121]
[1767892624213,5.77422857,137.93,137.9,13.24]
[1767892624415,6.47708798,137.94,137.9,13.24]
[1767892624717,6.47708798,137.94,137.9,13.89655121]
[1767892624906,7.07159793,137.95,137.91,6.43077978]
[1767892625091,7.07159793,137.95,137.92,5.77422857]
[1767892625296,7.07159793,137.95,137.91,6.43077978]
[1767892626620,7.07159793,137.95,137.92,6.46651551]
[1767892626817,7.24861705,137.96,137.92,6.46651551]
[1767892627217,7.24861705,137.96,137.89,0.69228694]
[1767892627218,0.67591309,137.95,137.89,0.69228694]
[1767892627411,0.67591309,137.95,137.91,0.69228694]
[1767892627412,5.77422857,137.95,137.91,0.69228694]
[1767892627620,31.81995325,137.96,137.91,6.46651551]
[1767892627818,0.67591309,137.95,137.91,6.46651551]
[1767892628521,7.92534932,137.95,137.91,6.46651551]
[1767892629029,6.45014166,137.93,137.87,6.46651551]
[1767892629202,0.67591309,137.92,137.88,13.24]
[1767892630116,7.25058004,137.92,137.88,13.93228694]
[1767892630306,0.67591309,137.91,137.88,13.24]
[1767892630508,2.15628488,137.91,137.88,13.93228694]
[1767892630718,9.40686492,137.92,137.88,13.93228694]
[1767892630918,2.83219797,137.92,137.88,13.93228694]
[1767892631116,2.83219797,137.92,137.88,13.24]
[1767892632043,7.24964881,137.94,137.9,0.69228694]
[1767892632329,9.40539913,137.95,137.9,0.69228694]
[1767892632529,13.02206401,137.95,137.9,0.69228694]
[1767892633311,7.24911425,137.95,137.91,5.77294976]
[1767892633511,0.67591309,137.94,137.91,5.71294976]
[1767892634207,7.92546098,137.94,137.91,5.71294976]
[1767892634409,0.67591309,137.93,137.91,5.71294976]
[1767892634730,0.67591309,137.93,137.89,7.94424475]
[1767892634731,0.67591309,137.93,137.9,5.77294976]
[1767892635443,0.67591309,137.92,137.88,5.77294976]
[1767892635608,0.67591309,137.92,137.88,19.01294976]
[1767892635918,0.67591309,137.9,137.86,19.01294976]
[1767892636335,0.67591309,137.9,137.86,6.4652367]
[1767892636541,0.67591309,137.9,137.86,19.7052367]
[1767892637114,0.67591309,137.9,137.87,5.77294976]
[1767892637515,13.69996239,137.92,137.87,5.77294976]
[1767892637919,7.92701263,137.92,137.88,5.77294976]
[1767892638232,7.92567827,137.94,137.89,6.4652367]
[1767892638415,7.92567827,137.94,137.9,5.77294976]
[1767892639918,13.69862803,137.94,137.89,19.7052367]
[1767892640740,0.67591309,137.93,137.89,19.01294976]
[1767892641211,13.02271494,137.94,137.9,0.69228694]
[1767892641723,13.69862803,137.94,137.9,0.69228694]
[1767892642241,31.82244998,137.94,137.9,0.69228694]
[1767892642831,6.44886285,137.92,137.88,19.7052367]
[1767892643245,5.77294976,137.93,137.89,0.69228694]
[1767892643944,7.25058004,137.92,137.89,0.69228694]
[1767892644931,7.25058004,137.92,137.88,19.01294976]
[1767892644932,6.44886285,137.91,137.87,0.69228694]
[1767892645134,13.0235298,137.92,137.88,0.69228694]
[1767892645341,13.69944289,137.92,137.88,0.69228694]
[1767892645725,7.25058004,137.92,137.88,6.4652367]
[1767892645924,13.0235298,137.92,137.88,0.69228694]
[1767892646744,13.69944289,137.92,137.88,0.69228694]
[1767892647322,13.69944289,137.92,137.87,26.95814911]
[1767892647523,5.77294976,137.91,137.87,13.93228694]
[1767892647726,6.44886285,137.91,137.87,13.93228694]
[1767892648445,0.67591309,137.91,137.87,26.95835761]
[1767892649932,7.92705273,137.91,137.87,26.95835761]
[1767892650247,7.92618141,137.93,137.89,6.4652367]
[1767892650746,7.24977963,137.94,137.91,0.69228694]
[1767892650924,7.24977963,137.94,137.91,0.63228694]
[1767892651943,7.24900326,137.95,137.91,6.4052367]
[1767892652246,7.44798923,137.97,137.93,5.77294976]
[1767892652429,0.2,137.97,137.95,5.77294976]
[1767892653035,0.2,137.97,137.95,6.48943269]
[1767892653343,7.44829453,137.97,137.93,0.71648293]
[1767892653546,0.2,137.97,137.95,0.71648293]
[1767892653740,0.2,137.97,137.96,0.71648293]
[1767892654764,9.39996155,138.01,137.97,0.71648293]
[1767892656633,31.83106657,138.01,137.97,0.71648293]
[1767892656824,26.06327651,138.01,137.97,0.71648293]
[1767892657131,5.76779006,138.0,137.97,0.71648293]
[1767892657547,5.76779006,138.0,137.97,0.65648293]
[1767892658249,13.01461003,138.0,137.95,7.24896989]
[1767892658439,13.01461003,138.0,137.9,99.0816459]
[1767892658440,6.47017056,137.99,137.94,19.00779006]
[1767892658645,6.47017056,137.99,137.91,18.41166637]
[1767892658646,0.7023805,137.96,137.91,7.39304101]
[1767892658838,5.76779006,137.96,137.92,13.24]
[1767892659237,5.76779006,137.97,137.92,13.24]
[1767892659746,13.7183913,137.97,137.92,7.25050646]
[1767892659950,6.47017056,137.96,137.91,26.97516799]
[1767892660154,6.47017056,137.96,137.92,0.71648293]
[1767892660939,0.7023805,137.96,137.92,0.71648293]
[1767892661139,6.47017056,137.96,137.91,13.73516799]
[1767892661356,6.47017056,137.96,137.91,26.97516799]
[1767892661730,13.71893162,137.96,137.92,0.71648293]
[1767892662053,6.47017056,137.93,137.88,0.71648293]
[1767892662257,5.76779006,137.92,137.88,0.71648293]
[1767892662442,6.47017056,137.92,137.88,0.71648293]
[1767892662639,5.76779006,137.9,137.87,0.71648293]
[1767892663358,5.76779006,137.91,137.87,0.71648293]
[1767892663761,13.01910156,137.91,137.87,0.71648293]
[1767892663963,5.76779006,137.92,137.88,0.71648293]
[1767892664360,13.72052335,137.93,137.88,0.71648293]
[1767892665038,7.24970565,137.94,137.91,0.71648293]
[1767892665450,0.7023805,137.97,137.92,6.48427299]
[1767892665643,6.47017056,137.97,137.92,0.71648293]
[1767892665941,6.47017056,137.97,137.92,13.73476609]
[1767892666464,6.47017056,137.97,137.92,0.71648293]
[1767892666835,5.76779006,137.96,137.92,0.71648293]
[1767892667456,6.47017056,137.96,137.91,13.24]
[1767892667657,5.76779006,137.94,137.9,13.24]
[1767892667956,13.7200534,137.94,137.9,13.24]
[1767892668258,6.47017056,137.93,137.89,0.71648293]
[1767892668847,6.47017056,137.93,137.89,7.96849697]
[1767892669046,6.47017056,137.93,137.9,7.25160307]
[1767892669239,0.7023805,137.93,137.89,7.96840457]
[1767892670258,6.47017056,137.93,137.89,7.96840457]
[1767892672360,5.76779006,137.93,137.89,7.96840457]
[1767892673361,13.71978159,137.94,137.89,13.73619463]
[1767892674670,10.08517935,137.93,137.89,0.71648293]
[1767892675267,16.63240988,137.94,137.89,17.35143414]
[1767892675570,31.36069427,137.97,137.9,10.09928178]
[1767892675571,7.95157445,137.95,137.9,10.09928178]
[1767892675751,7.95157445,137.95,137.9,13.95648293]
[1767892675951,7.95157445,137.95,137.91,9.38279885]
[1767892676662,7.95157445,137.95,137.9,23.33928178]
[1767892677039,17.3343733,137.95,137.9,23.33928178]
[1767892678064,17.3343733,137.95,137.9,30.59083353]
[1767892679565,17.3343733,137.95,137.91,0.71648293]
[1767892680466,7.95157445,137.95,137.91,0.71648293]
[1767892682276,9.38279885,137.96,137.92,0.68388861]
[1767892682578,10.08610285,137.99,137.94,10.06668746]
[1767892683280,0.703304,137.99,137.94,10.06668746]
[1767892683484,7.24773255,137.98,137.94,10.06668746]
[1767892684280,7.95042014,137.99,137.94,17.31619114]
[1767892684472,17.33321899,137.99,137.94,17.31619114]
[1767892684790,0.703304,137.98,137.94,0.68388861]
[1767892685561,0.71463012,137.97,137.92,7.25040587]
[1767892685863,0.71463012,137.92,137.86,0.68448791]
[1767892686071,0.71463012,137.91,137.86,13.92448791]
[1767892686278,9.38279885,137.9,137.86,0.68448791]
[1767892686481,9.38279885,137.9,137.86,13.92448791]
[1767892687168,9.38279885,137.9,137.86,21.17787809]
[1767892687964,0.71463012,137.91,137.87,0.68448791]
[1767892688168,10.09742897,137.91,137.87,0.68448791]
[1767892688986,0.71463012,137.91,137.87,0.68448791]
[1767892689164,17.34867628,137.91,137.87,0.68448791]
[1767892690363,10.09742897,137.89,137.85,0.68448791]
[1767892690896,10.09742897,137.89,137.85,7.93873095]
[1767892691188,0.71463012,137.89,137.85,7.93873095]
[1767892691393,0.71463012,137.89,137.85,17.3215298]
[1767892692178,7.96683552,137.89,137.85,7.93873095]
[1767892692587,7.96683552,137.89,137.85,21.17873095]
[1767892692783,7.96683552,137.89,137.85,30.5615298]
[1767892693375,0.71463012,137.91,137.87,10.06728676]
[1767892693696,7.25058004,137.92,137.88,10.06728676]
[1767892694075,17.34800901,137.92,137.88,0.68448791]
[1767892694589,17.34800901,137.92,137.87,0.68448791]
[1767892694773,17.34800901,137.92,137.86,22.62279885]
[1767892694774,10.09742897,137.91,137.86,22.62279885]
[1767892694979,10.09742897,137.91,137.86,23.30728676]
[1767892695588,0.71463012,137.91,137.87,7.93769745]
[1767892695769,0.71463012,137.91,137.87,17.3204963]
[1767892695982,7.96582726,137.91,137.87,7.93769745]
[1767892696181,0.71463012,137.93,137.88,10.06728676]
[1767892696384,10.09742897,137.93,137.88,10.06728676]
[1767892697300,0.71463012,137.93,137.89,10.06728676]
[1767892697487,110.34985067,137.94,137.9,0.68448791]
[1767892697696,7.96448079,137.94,137.9,0.68448791]
[1767892697880,0.71463012,137.93,137.88,7.93710531]
[1767892698203,0.71463012,137.93,137.89,10.06728676]
[1767892698590,0.71463012,137.93,137.89,0.68448791]
[1767892698778,10.09742897,137.93,137.89,0.68448791]
[1767892699200,10.09742897,137.92,137.88,13.92448791]
[1767892699498,0.71463012,137.91,137.88,13.24]
[1767892699703,17.34833958,137.92,137.88,13.92448791]
[1767892700404,17.34833958,137.92,137.88,21.17704432]
[1767892702902,10.09742897,137.91,137.87,0.68448791]
[1767892703205,0.71463012,137.9,137.87,20.49318215]
[1767892704594,16.63411207,137.91,137.87,21.17767006]
[1767892705784,7.25131322,137.91,137.87,30.56046891]
[1767892706108,7.25082211,137.92,137.89,0.68448791]
[1767892706319,7.96545223,137.92,137.88,10.06728676]
[1767892707695,7.96545223,137.92,137.88,17.31994988]
[1767892708096,113.19742897,137.94,137.9,0.68448791]
[1767892708805,120.4471476,137.94,137.9,0.68448791]
[1767892708994,111.06434875,137.94,137.9,10.06728676]
[1767892709193,103.1,137.94,137.91,10.06728676]
[1767892709419,7.24915695,137.95,137.91,10.06728676]
[1767892709590,7.96333372,137.96,137.92,10.06728676]
[1767892711494,17.34613257,137.96,137.92,0.68448791]
[1767892711718,17.34613257,137.96,137.92,0.62448791]
[1767892712223,0.71463012,137.93,137.89,7.25195975]
[1767892712524,0.71463012,137.93,137.89,16.6347586]
[1767892713109,0.70997234,137.94,137.9,16.63430748]
[1767892713502,0.70997234,137.93,137.89,9.38279885]
[1767892713798,0.70997234,137.93,137.89,10.06240531]
[1767892714000,0.70997234,137.93,137.89,17.31447138]
[1767892714427,0.70997234,137.93,137.89,10.06240531]
[1767892715095,0.70997234,137.93,137.89,0.67960646]
[1767892715311,0.70997234,137.93,137.89,10.06240531]
[1767892715509,0.70997234,137.9,137.85,0.67960646]
[1767892715726,10.09277119,137.9,137.85,30.55628693]
[1767892716407,10.09277119,137.9,137.85,21.17348808]
[1767892716822,10.09277119,137.9,137.85,30.55628693]
[1767892717020,0.70997234,137.89,137.85,30.55628693]
[1767892718100,7.96215184,137.89,137.85,30.55628693]
[1767892718299,17.34436871,137.91,137.87,0.67960646]
[1767892718519,0.70997234,137.87,137.82,0.67960646]
[1767892718719,10.09277119,137.87,137.82,30.55814314]
[1767892718935,10.09277119,137.87,137.83,0.67960646]
[1767892719329,0.70997234,137.87,137.83,0.67960646]
[1767892719834,0.70997234,137.87,137.83,7.93491338]
[1767892720414,7.96327447,137.87,137.83,7.93491338]
[1767892720725,7.96327447,137.87,137.83,11.30622633]
[1767892721129,7.96327447,137.87,137.83,3.37131295]
[1767892721731,7.96327447,137.87,137.83,10.62660215]
[1767892721936,7.96327447,137.87,137.83,7.2552892]
[1767892722112,7.96327447,137.87,137.83,10.62660215]
[1767892723144,4.08128529,137.85,137.8,0.67960646]
[1767892723340,0.70997234,137.84,137.8,24.54752913]
[1767892723631,0.70997234,137.84,137.8,13.91960646]
[1767892723812,0.70997234,137.84,137.8,17.29091941]
[1767892724020,0.70997234,137.84,137.8,24.54779275]
[1767892724223,3.37131295,137.85,137.81,10.62753195]
[1767892724224,0.70997234,137.85,137.81,10.62753195]
[1767892728315,0.54947738,137.83,137.8,3.37131295]
[1767892728522,0.51947739,137.83,137.8,10.62819512]
[1767892728734,0.4894774,137.83,137.8,10.62819512]
[1767892729235,0.4894774,137.83,137.81,3.37131295]
[1767892729633,0.4894774,137.83,137.8,10.62819512]
[1767892730545,0.4894774,137.83,137.8,7.25688217]
[1767892730732,10.62577941,137.85,137.81,0.67960646]
[1767892731247,7.96223985,137.85,137.81,4.05091941]
[1767892731836,7.96223985,137.85,137.81,0.67960646]
[1767892732046,7.96223985,137.85,137.81,4.05091941]
[1767892732450,7.96223985,137.85,137.81,0.67960646]